bitfinex/quotes_SOLUSD_20250518
["timestamp","ask_amount","ask_price","bid_price","bid_amount"]
[1747527794504,138.2,166.37,166.3,18.64964886]
[1747527795207,144.21070821,166.37,166.3,18.64964886]
[1747527795506,10.19247958,166.36,166.29,18.64964886]
[1747527796010,144.21070821,166.37,166.28,6.01387928]
[1747527796011,144.21070821,166.37,166.28,24.66352814]
[1747527796386,154.40318779,166.37,166.28,24.66352814]
[1747527796802,10.19247958,166.36,166.28,24.66352814]
[1747527797004,6.0114217,166.35,166.3,18.64964886]
[1747527797389,6.0114217,166.35,166.29,19.18]
[1747527797594,16.20390128,166.35,166.29,19.18]
[1747527797808,10.19247958,166.34,166.29,19.18]
[1747527798712,10.19247958,166.34,166.28,18.64964886]
[1747527798917,10.19247958,166.32,166.27,1.5812]
[1747527799094,6.01286753,166.31,166.27,1.5812]
[1747527799497,16.20473015,166.33,166.27,7.59543668]
[1747527800010,16.20473015,166.33,166.27,1.5812]
[1747527800188,16.20473015,166.33,166.27,7.59549871]
[1747527800984,16.20422772,166.35,166.27,7.59549871]
[1747527801194,16.20422772,166.35,166.29,6.01359071]
[1747527801906,16.20422772,166.35,166.28,24.66351769]
[1747527802595,138.2,166.37,166.28,24.66351769]
[1747527802596,154.40353872,166.37,166.28,24.66351769]
[1747527802805,6.01105914,166.37,166.28,24.66351769]
[1747527803386,16.20268123,166.39,166.28,39.69839861]
[1747527803586,10.19247958,166.4,166.32,18.64964886]
[1747527803817,10.19247958,166.4,166.33,19.16]
[1747527804490,16.20222554,166.4,166.33,19.16]
[1747527805228,16.20222554,166.4,166.33,25.17207509]
[1747527807118,6.00974596,166.4,166.33,25.17207509]
[1747527807315,16.20177395,166.41,166.34,18.64964886]
[1747527807525,148.39247958,166.42,166.34,46.21484886]
[1747527808608,154.40150444,166.42,166.35,6.0114217]
[1747527808927,10.19247958,166.41,166.34,52.22651464]
[1747527810333,10.19247958,166.39,166.34,1.5652]
[1747527810635,6.01033778,166.38,166.34,1.5652]
[1747527810820,10.19247958,166.36,166.3,26.73831694]
[1747527811132,6.01033778,166.38,166.3,26.73831694]
[1747527811133,6.01033778,166.38,166.3,19.16]
[1747527811313,10.19247958,166.34,166.3,19.16]
[1747527811531,10.19247958,166.35,166.29,24.66312385]
[1747527812332,16.20407207,166.35,166.29,24.66312385]
[1747527813131,10.19247958,166.34,166.28,6.3432]
[1747527814037,10.19247958,166.33,166.28,6.3432]
[1747527814348,16.20579911,166.3,166.26,1.5652]
[1747527814653,6.01331953,166.3,166.26,1.5652]
[1747527815829,16.20462411,166.33,166.26,7.57978356]
[1747527817735,6.0114217,166.35,166.26,7.57978356]
[1747527818042,10.19247958,166.33,166.26,7.57978356]
[1747527818929,6.01250601,166.32,166.26,7.57978356]
[1747527822041,16.20498559,166.32,166.26,1.5652]
[1747527822213,10.19247958,166.31,166.26,1.5652]
[1747527822420,10.19247958,166.31,166.26,20.6852]
[1747527822719,10.19247958,166.31,166.26,1.5652]
[1747527822921,10.19247958,166.31,166.25,37.76964886]
[1747527823415,10.19247958,166.29,166.22,7.61427152]
[1747527823619,10.19247958,166.28,166.23,19.12]
[1747527824925,19.1,166.31,166.24,18.64964886]
[1747527825252,10.19247958,166.31,166.24,18.64964886]
[1747527825418,10.19247958,166.31,166.25,6.01503759]
[1747527825419,16.20547653,166.31,166.25,6.01503759]
[1747527825619,10.19247958,166.3,166.24,24.66496327]
[1747527826131,10.19247958,166.3,166.23,25.13562159]
[1747527826333,10.19247958,166.28,166.23,19.12]
[1747527826640,10.19247958,166.25,166.2,6.3915]
[1747527827049,10.19247958,166.26,166.2,6.3915]
[1747527827947,10.19247958,166.26,166.2,12.4082811]
[1747527828147,16.2069692,166.27,166.2,12.4082811]
[1747527828349,10.19247958,166.29,166.21,18.64964886]
[1747527828737,10.19247958,166.28,166.21,18.64964886]
[1747527829247,10.19247958,166.27,166.21,18.64964886]
[1747527829855,16.20687006,166.27,166.21,24.66599268]
[1747527830154,10.19247958,166.27,166.21,24.66599268]
[1747527830454,16.20653696,166.28,166.21,24.66599268]
[1747527831047,16.20613708,166.29,166.21,24.66599268]
[1747527831356,19.12,166.3,166.21,39.7072056]
[1747527831555,35.32575169,166.3,166.21,39.7072056]
[1747527832250,16.20627171,166.29,166.21,39.7072056]
[1747527832454,16.20627171,166.29,166.21,24.66599268]
[1747527832851,10.19247958,166.28,166.2,12.40829941]
[1747527833055,10.19247958,166.26,166.2,31.76829941]
[1747527833555,10.19247958,166.27,166.2,31.76829941]
[1747527834231,16.20662285,166.28,166.22,6.01612321]
[1747527834946,42.20618307,166.29,166.22,6.01612321]
[1747527835335,32.01370349,166.29,166.22,6.01612321]
[1747527835550,42.20618307,166.29,166.22,6.01612321]
[1747527836155,16.20673782,166.28,166.22,6.01612321]
[1747527836450,26.0,166.29,166.23,18.64964886]
[1747527840051,16.20390128,166.35,166.27,18.64964886]
[1747527840557,16.20390128,166.35,166.28,6.01395236]
[1747527840761,10.19247958,166.33,166.26,25.965]
[1747527841265,10.19247958,166.32,166.26,25.965]
[1747527841560,10.19247958,166.31,166.26,19.32]
[1747527841761,10.19247958,166.31,166.24,7.56380815]
[1747527841762,10.19247958,166.28,166.24,19.32]
[1747527842563,6.01431406,166.27,166.24,19.32]
[1747527842738,16.20679364,166.27,166.24,19.32]
[1747527843449,10.19247958,166.26,166.24,19.32]
[1747527844659,16.20751277,166.26,166.24,19.32]
[1747527844840,16.20689677,166.27,166.24,19.32]
[1747527847067,16.20645559,166.28,166.24,19.32]
[1747527847265,16.20616031,166.29,166.24,19.32]
[1747527847460,6.01368073,166.29,166.24,25.33538455]
[1747527847853,16.20616031,166.29,166.24,19.32]
[1747527848667,10.19247958,166.27,166.22,19.3]
[1747527849971,16.20643194,166.28,166.22,25.31612094]
[1747527850355,16.20643194,166.28,166.22,19.3]
[1747527850865,16.20643194,166.28,166.21,24.66600426]
[1747527859380,10.19247958,166.31,166.21,50.66600426]
[1747527859554,19.12,166.32,166.23,18.64964886]
[1747527859883,144.21242265,166.33,166.23,18.64964886]
[1747527860781,144.21242265,166.33,166.24,6.01539942]
[1747527860981,138.2,166.33,166.25,18.64964886]
[1747527861153,138.2,166.33,166.27,18.64964886]
[1747527861354,10.19247958,166.35,166.27,18.64964886]
[1747527862172,10.19247958,166.33,166.26,20.8809]
[1747527862385,10.19247958,166.32,166.26,20.8809]
[1747527862687,10.19247958,166.33,166.26,20.8809]
[1747527862868,27.6103,166.36,166.27,24.66396292]
[1747527863186,10.19247958,166.35,166.27,24.66396292]
[1747527863395,27.6103,166.36,166.27,24.66396292]
[1747527863586,10.19247958,166.35,166.27,24.66396292]
[1747527863763,16.20390128,166.35,166.27,24.66396292]
[1747527864190,36.19247958,166.36,166.28,18.64964886]
[1747527864390,10.19247958,166.36,166.28,25.01074886]
[1747527864689,10.19247958,166.35,166.28,25.01074886]
[1747527864895,16.20394338,166.35,166.29,6.01359071]
[1747527866398,10.19247958,166.32,166.26,20.8809]
[1747527866569,10.19247958,166.33,166.26,20.8809]
[1747527866889,10.19247958,166.34,166.27,18.64964886]
[1747527867577,16.20394338,166.35,166.27,18.64964886]
[1747527867885,10.19247958,166.34,166.27,18.64964886]
[1747527868070,16.20457799,166.34,166.28,6.01395236]
[1747527873092,16.20457799,166.34,166.27,24.66386721]
[1747527873899,10.19247958,166.33,166.26,1.6609]
[1747527874074,10.19247958,166.32,166.26,1.6609]
[1747527874273,10.19247958,166.29,166.24,6.6039]
[1747527874785,10.19247958,166.3,166.24,12.61918597]
[1747527875098,16.20599951,166.3,166.24,12.61918597]
[1747527876113,16.20599951,166.3,166.24,6.6039]
[1747527876291,10.19247958,166.29,166.24,6.6039]
[1747527877380,16.20625325,166.29,166.24,12.61929181]
[1747527877903,16.20625325,166.29,166.24,6.6039]
[1747527880201,16.20625325,166.29,166.23,19.2]
[1747527880202,10.19247958,166.28,166.23,19.2]
[1747527880983,16.20625325,166.29,166.23,25.2157366]
[1747527881298,16.20625325,166.29,166.23,19.2]
[1747527883683,10.19247958,166.28,166.22,26.73831239]
[1747527884204,10.19247958,166.26,166.21,19.14]
[1747527886501,16.20740141,166.26,166.21,19.14]
[1747527887012,10.19247958,166.24,166.18,1.5823]
[1747527887309,10.19247958,166.22,166.16,30.04490483]
[1747527887810,10.19247958,166.25,166.17,18.64964886]
[1747527888007,16.20740141,166.26,166.17,18.64964886]
[1747527888684,16.20740141,166.26,166.18,6.0175713]
[1747527889197,6.01492183,166.26,166.19,18.64964886]
[1747527890221,6.01492183,166.26,166.2,6.01684717]
[1747527893207,10.19247958,166.26,166.2,6.01684717]
[1747527894725,6.01503759,166.25,166.2,6.01684717]
[1747527894935,6.01503759,166.25,166.19,6.01715569]
[1747527895232,16.20723484,166.26,166.19,6.01715569]
[1747527896428,10.19247958,166.26,166.19,6.01715569]
[1747527896621,16.20691629,166.27,166.19,6.01715569]
[1747527897122,16.20691629,166.27,166.18,6.0175713]
[1747527897620,10.19247958,166.26,166.18,6.0175713]
[1747527898121,16.20751717,166.25,166.18,18.64964886]
[1747527898507,16.20751717,166.25,166.18,37.74964886]
[1747527898715,6.01503759,166.25,166.18,37.74964886]
[1747527899028,16.20751717,166.25,166.18,37.74964886]
[1747527899226,16.20751717,166.25,166.18,43.76697496]
[1747527900354,6.01576129,166.23,166.18,43.76697496]
[1747527900522,6.01576129,166.23,166.18,37.74964886]
[1747527901228,15.03595138,166.27,166.18,43.76712343]
[1747527901553,16.20688706,166.27,166.2,18.64964886]
[1747527901722,6.01440748,166.27,166.2,18.64964886]
[1747527902953,6.01440748,166.27,166.21,6.01648516]
[1747527903658,138.2,166.3,166.22,18.64964886]
[1747527903822,10.19247958,166.29,166.22,18.64964886]
[1747527904152,148.39247958,166.3,166.22,18.64964886]
[1747527904652,10.19247958,166.29,166.22,18.64964886]
[1747527904853,10.19247958,166.28,166.22,18.64964886]
[1747527905265,10.19247958,166.27,166.2,6.01684717]
[1747527905419,10.19247958,166.26,166.19,26.80863985]
[1747527905619,10.19247958,166.25,166.19,26.80863985]
[1747527905844,10.19247958,166.25,166.19,7.64863985]
[1747527907252,10.19247958,166.26,166.19,7.64863985]
[1747527908228,16.20751717,166.25,166.19,7.64863985]
[1747527908735,16.20724282,166.26,166.19,7.64863985]
[1747527909953,16.20758303,166.25,166.19,7.64863985]
[1747527911256,10.19247958,166.25,166.19,7.64863985]
[1747527911427,138.2,166.3,166.19,7.64863985]
[1747527911759,16.20607029,166.29,166.2,18.64964886]
[1747527912246,16.20607029,166.29,166.21,6.01648516]
[1747527912824,10.19247958,166.27,166.19,7.64857735]
[1747527913131,10.19247958,166.26,166.2,19.08]
[1747527913333,10.19247958,166.26,166.19,7.64857735]
[1747527913559,10.19247958,166.26,166.19,26.72857735]
[1747527914062,6.01503759,166.25,166.19,20.7115]
[1747527915259,6.01503759,166.25,166.19,1.6315]
[1747527915260,10.19247958,166.24,166.19,1.6315]
[1747527916061,16.20806003,166.24,166.19,7.64863715]
[1747527917671,10.19247958,166.25,166.19,7.64863715]
[1747527918594,6.01539942,166.24,166.19,7.64863715]
[1747527919655,6.01539942,166.24,166.18,19.08]
[1747527919656,16.207879,166.24,166.18,19.08]
[1747527920762,16.207879,166.24,166.18,25.09746851]
[1747527920958,6.01431406,166.27,166.18,25.09746851]
[1747527921256,10.19247958,166.25,166.18,25.09746851]
[1747527922169,26.0,166.27,166.18,25.09746851]
[1747527922466,6.01359071,166.29,166.21,18.64964886]
[1747527923260,144.21337258,166.3,166.21,18.64964886]
[1747527923444,144.21337258,166.3,166.22,6.2661]
[1747527923853,11.49837643,166.31,166.23,18.64964886]
[1747527924059,11.49837643,166.31,166.25,18.64964886]
[1747527924261,11.49837643,166.31,166.26,6.0146758]
[1747527925068,11.49837643,166.31,166.27,20.30284886]
[1747527925941,11.49837643,166.31,166.27,1.6532]
[1747527926242,11.49837643,166.31,166.24,45.08]
[1747527926243,27.70376316,166.31,166.24,19.08]
[1747527927469,17.51128358,166.31,166.24,19.08]
[1747527927875,17.51128358,166.31,166.24,25.09528128]
[1747527929370,11.49837643,166.31,166.24,25.09528128]
[1747527931158,11.49837643,166.31,166.25,18.64964886]
[1747527931474,11.49837643,166.31,166.26,6.0146758]
[1747527931659,11.49837643,166.31,166.27,18.64964886]
[1747527933600,11.49837643,166.31,166.28,6.01395236]
[1747527933754,11.49837643,166.31,166.29,18.64964886]
[1747527934375,11.49837643,166.31,166.28,6.01395236]
[1747527937397,11.49837643,166.31,166.27,6.01425654]
[1747527938484,11.49837643,166.31,166.26,43.74422097]
[1747527939188,27.70383219,166.31,166.26,19.08]
[1747527940274,27.70383219,166.31,166.25,6.01497209]
[1747527940885,27.70383219,166.31,166.22,7.9193]
[1747527941075,10.19247958,166.28,166.22,7.9193]
[1747527941692,10.19247958,166.27,166.22,7.9193]
[1747527942066,10.19247958,166.27,166.22,13.93541792]
[1747527942377,10.19247958,166.28,166.22,13.93541792]
[1747527943074,58.54352145,166.31,166.22,1.6532]
[1747527943075,16.20679364,166.27,166.22,1.6532]
[1747527943388,16.20679364,166.27,166.21,6.0163408]
[1747527943597,16.20679364,166.27,166.2,44.17677744]
[1747527943792,16.20679364,166.27,166.2,25.09677744]
[1747527945294,10.19247958,166.27,166.2,25.09677744]
[1747527945584,16.20651658,166.28,166.2,25.09677744]
[1747527946568,6.0146758,166.26,166.2,25.09677744]
[1747527946895,16.20687202,166.27,166.2,25.09677744]
[1747527947194,6.01439244,166.27,166.2,25.09677744]
[1747527947791,16.20655317,166.28,166.2,25.09677744]
[1747527947993,6.01407359,166.28,166.21,18.64964886]
[1747527948702,6.01407359,166.28,166.22,6.01612321]
[1747527950092,6.0132291,166.3,166.22,6.01612321]
[1747527950398,16.20570868,166.3,166.22,6.01612321]
[1747527950689,10.19247958,166.29,166.22,6.01612321]
[1747527951683,16.20570868,166.3,166.22,6.01612321]
[1747527952179,6.01395236,166.28,166.22,6.01612321]
[1747527953298,6.01395236,166.28,166.21,18.64964886]
[1747527953299,6.01395236,166.28,166.21,24.66602023]
[1747527955997,6.0132291,166.3,166.21,24.66602023]
[1747527956304,10.19247958,166.29,166.21,24.66602023]
[1747527957000,6.01395236,166.28,166.21,24.66602023]
[1747527962180,37.49837643,166.31,166.21,39.70723315]
[1747527963502,10.19247958,166.3,166.21,39.70723315]
[1747527964606,6.01359071,166.29,166.21,39.70723315]
[1747527965301,47.69085601,166.31,166.21,39.70723315]
[1747527965484,37.49837643,166.31,166.22,1.5915]
[1747527965686,11.49837643,166.31,166.25,18.64964886]
[1747527965880,11.49837643,166.31,166.27,18.64964886]
[1747527966082,11.49837643,166.31,166.29,18.64964886]
[1747527966276,6.01083144,166.37,166.29,18.64964886]
[1747527966909,6.01033778,166.38,166.3,12.6437291]
[1747527967092,6.01033778,166.38,166.31,18.64964886]
[1747527968090,138.2,166.39,166.33,18.64964886]
[1747527968913,138.2,166.39,166.34,6.01178309]
[1747527969090,6.00961982,166.4,166.34,6.01178309]
[1747527969682,16.2020994,166.4,166.33,18.64964886]
[1747527969888,16.2020994,166.4,166.33,24.66166563]
[1747527970816,6.00961982,166.4,166.33,24.66166563]
[1747527972416,10.19247958,166.41,166.33,24.66166563]
[1747527974319,6.00961538,166.4,166.33,24.66166563]
[1747527976306,6.00925425,166.41,166.33,24.66166563]
[1747527977719,16.20146653,166.42,166.35,18.64964886]
[1747527977918,6.00756071,166.46,166.39,18.64964886]
[1747527979822,6.00756071,166.46,166.39,24.65945423]
[1747527981427,6.00756071,166.46,166.39,18.64964886]
[1747527981627,16.20004029,166.46,166.37,6.4458]
[1747527981820,10.19247958,166.45,166.38,19.06]
[1747527982018,10.19247958,166.43,166.38,19.06]
[1747527982214,10.19247958,166.42,166.36,37.70964886]
[1747527982523,10.19247958,166.41,166.36,19.06]
[1747527983224,10.19247958,166.43,166.36,25.07101197]
[1747527983607,10.19247958,166.43,166.36,19.06]
[1747527983820,10.19247958,166.43,166.36,25.07099577]
[1747527984528,6.00867501,166.43,166.37,18.64964886]
[1747527984929,6.00821338,166.44,166.37,18.64964886]
[1747527985134,6.0078647,166.45,166.37,18.64964886]
[1747527986208,25.21061508,166.47,166.37,18.64964886]
[1747527986209,6.00708836,166.47,166.41,18.64964886]
[1747527986523,172.25569901,166.5,166.41,18.64964886]
[1747527986524,6.00664923,166.49,166.42,19.06]
[1747527986706,163.24607079,166.5,166.43,18.64964886]
[1747527986909,6.00607079,166.5,166.43,18.64964886]
[1747527988205,6.00607079,166.5,166.43,24.65792407]
[1747527988405,6.00607079,166.5,166.43,18.64964886]
[1747527988716,6.00607079,166.5,166.43,24.65809404]
[1747527989029,16.19855037,166.5,166.43,18.64964886]
[1747527989232,16.19855037,166.5,166.43,24.65815868]
[1747527990630,10.19247958,166.48,166.42,19.06]
[1747527991618,10.19247958,166.49,166.42,19.06]
[1747527992333,10.19247958,166.48,166.42,19.06]
[1747527992705,6.00708836,166.47,166.42,19.06]
[1747527993439,10.19247958,166.46,166.4,7.8051]
[1747527993608,10.19247958,166.45,166.4,26.8651]
[1747527993807,10.19247958,166.45,166.4,20.6188]
[1747527994731,6.00781015,166.45,166.4,20.6188]
[1747527997239,16.20028973,166.45,166.4,20.6188]
[1747527997408,16.20028973,166.45,166.4,1.5588]
[1747527998141,6.00781015,166.45,166.4,1.5588]
[1747527999737,16.20028973,166.45,166.37,43.70033008]
[1747528000049,10.19247958,166.44,166.38,19.04]
[1747528001235,31.21981511,166.45,166.37,44.11062464]
[1747528001839,16.20028973,166.45,166.38,18.64964886]
[1747528002332,6.00781015,166.45,166.38,18.64964886]
[1747528002917,16.20028973,166.45,166.38,24.65985703]
[1747528003416,16.20028973,166.45,166.38,43.69985703]
[1747528003612,16.20028973,166.45,166.38,37.68964886]
[1747528003948,10.19247958,166.42,166.36,8.1407]
[1747528004158,10.19247958,166.4,166.32,33.07880049]
[1747528004309,10.19247958,166.39,166.32,52.13880049]
[1747528004515,10.19247958,166.38,166.32,46.1264]
[1747528004935,6.01069904,166.37,166.32,52.13885122]
[1747528005439,6.00990449,166.4,166.32,52.13885122]
[1747528005614,16.20238407,166.4,166.32,52.13885122]
[1747528006645,35.24111485,166.43,166.33,18.64964886]
[1747528007147,35.24111485,166.43,166.34,6.01178309]
[1747528010752,6.00863527,166.43,166.34,21.04124082]
[1747528012667,16.20111485,166.43,166.34,21.04124082]
[1747528013965,6.00863527,166.43,166.34,21.04124082]
[1747528017167,174.39247958,166.44,166.37,18.64964886]
[1747528017466,138.2,166.44,166.39,18.64964886]
[1747528018368,144.20829138,166.44,166.38,20.6923]
[1747528018545,154.40077096,166.44,166.38,19.06]
[1747528018748,10.19247958,166.43,166.38,19.06]
[1747528019070,144.20829138,166.44,166.38,19.06]
[1747528020184,144.20829138,166.44,166.38,25.07008811]
[1747528020384,138.2,166.44,166.38,25.07008811]
[1747528020869,144.2081912,166.44,166.38,25.07008811]
[1747528021069,154.40067078,166.44,166.38,19.06]
[1747528022364,154.40067078,166.44,166.36,24.66056505]
[1747528022365,10.19247958,166.43,166.36,24.66056505]
[1747528022558,10.19247958,166.43,166.36,43.70056505]
[1747528023390,6.00889316,166.42,166.36,43.70056505]
[1747528023715,6.00889316,166.42,166.36,24.66056505]
[1747528025898,6.00866097,166.43,166.36,24.66056505]
[1747528026196,148.39247958,166.44,166.37,18.64964886]
[1747528026197,144.20831206,166.44,166.37,18.64964886]
[1747528026677,154.40079164,166.44,166.37,18.64964886]
[1747528027395,154.40079164,166.44,166.37,24.6602833]
[1747528028278,10.19247958,166.43,166.35,19.04]
[1747528028661,10.19247958,166.42,166.34,20.28194886]
[1747528028880,10.19247958,166.39,166.33,4.30560483]
[1747528029071,10.19247958,166.37,166.33,4.30560483]
[1747528029480,6.01106035,166.36,166.33,4.30560483]
[1747528029871,6.01106035,166.36,166.3,45.22854789]
[1747528031093,16.20353993,166.36,166.3,26.57889903]
[1747528032211,10.19247958,166.37,166.3,26.57889903]
[1747528032375,10.19247958,166.38,166.3,26.57889903]
[1747528033701,6.01069904,166.37,166.3,26.57889903]
[1747528034001,138.2,166.42,166.31,18.64964886]
[1747528034179,148.39247958,166.42,166.31,18.64964886]
[1747528035205,154.40151042,166.42,166.31,18.64964886]
[1747528035678,10.19247958,166.41,166.31,18.64964886]
[1747528035873,16.20186192,166.41,166.32,6.01250601]
[1747528036197,6.00938234,166.41,166.32,21.04377104]
[1747528037187,10.19247958,166.39,166.32,6.01250601]
[1747528037391,10.19247958,166.38,166.31,19.04]
[1747528037583,10.19247958,166.37,166.31,19.04]
[1747528037913,6.01106035,166.36,166.31,19.04]
[1747528038210,10.19247958,166.35,166.28,6.5811]
[1747528038386,10.19247958,166.35,166.28,25.6211]
[1747528039085,16.20353993,166.36,166.28,25.6211]
[1747528039277,16.20353993,166.36,166.28,31.63503547]
[1747528039814,16.20353993,166.36,166.28,12.59503547]
[1747528040106,6.01033778,166.38,166.3,6.0132291]
[1747528040607,10.19247958,166.36,166.3,6.0132291]
[1747528040815,6.01033778,166.38,166.3,6.0132291]
[1747528041006,10.19247958,166.36,166.3,6.0132291]
[1747528041906,6.01033778,166.38,166.3,6.0132291]
[1747528042117,6.0114217,166.35,166.29,25.05352949]
[1747528044204,16.20364294,166.36,166.29,25.05352949]
[1747528044415,16.20308064,166.38,166.29,25.05352949]
[1747528044901,6.01060106,166.38,166.29,25.05352949]
[1747528045210,16.20308064,166.38,166.29,25.05352949]
[1747528047103,10.19247958,166.37,166.29,25.05352949]
[1747528048104,16.20308064,166.38,166.29,25.05352949]
[1747528051416,10.19247958,166.37,166.29,25.05352949]
[1747528055314,16.20353993,166.36,166.29,19.04]
[1747528055493,10.19247958,166.34,166.28,6.5811]
[1747528056237,10.19247958,166.34,166.28,12.59501454]
[1747528056916,10.19247958,166.35,166.28,12.59501454]
[1747528057414,16.20426267,166.34,166.27,38.08]
[1747528057616,16.20426267,166.34,166.27,19.04]
[1747528058323,16.20426267,166.34,166.27,25.05431023]
[1747528059434,16.20426267,166.34,166.27,19.04]
[1747528059619,10.19247958,166.31,166.24,6.0129]
[1747528059802,10.19247958,166.31,166.25,19.04]
[1747528060131,10.19247958,166.31,166.23,43.70530028]
[1747528060132,10.19247958,166.3,166.23,43.70530028]
[1747528060833,10.19247958,166.31,166.23,43.70530028]
[1747528061421,6.0132291,166.3,166.23,43.70530028]
[1747528061721,26.0,166.31,166.23,43.70530028]
[1747528062103,6.01214453,166.33,166.23,84.74470351]
[1747528062716,16.20462411,166.33,166.23,84.74470351]
[1747528065118,42.20439616,166.34,166.23,84.74470351]
[1747528065913,42.20439616,166.34,166.23,89.05030834]
[1747528066826,42.20439616,166.34,166.25,24.66468645]
[1747528070229,10.19247958,166.33,166.25,24.66468645]
[1747528070527,42.20439616,166.34,166.25,24.66468645]
[1747528074234,19.04,166.36,166.26,1.542]
[1747528074434,20.13530988,166.4,166.29,18.64964886]
[1747528074636,20.13530988,166.4,166.31,18.64964886]
[1747528074838,20.13530988,166.4,166.32,1.542]
[1747528075023,20.13530988,166.4,166.35,18.64964886]
[1747528075220,20.13530988,166.4,166.39,26.0]
[1747528075420,8.64112031,166.45,166.4,20.30404886]
[1747528075623,8.64112031,166.45,166.41,19.04]
[1747528075825,138.2,166.51,166.43,18.64964886]
[1747528076123,138.2,166.51,166.44,6.00817111]
[1747528076506,144.20568556,166.51,166.44,6.00817111]
[1747528076713,144.20568556,166.51,166.43,30.70395402]
[1747528076942,10.19247958,166.5,166.43,6.0458]
[1747528077314,10.19247958,166.48,166.42,19.04]
[1747528077625,10.19247958,166.49,166.42,19.04]
[1747528078231,6.00708836,166.47,166.42,19.04]
[1747528078430,6.00708836,166.47,166.4,20.6944]
[1747528078827,31.21728885,166.47,166.4,20.6944]
[1747528079023,10.19247958,166.46,166.4,19.04]
[1747528079440,31.21728885,166.47,166.4,19.04]
[1747528085943,6.00708836,166.47,166.41,18.64964886]
[1747528087143,6.00672753,166.48,166.41,24.65877362]
[1747528088136,6.00672753,166.48,166.41,18.64964886]
[1747528089750,6.006006,166.5,166.41,24.65888333]
[1747528089950,6.006006,166.5,166.43,18.64964886]
[1747528090862,6.006006,166.5,166.43,24.65798744]
[1747528094173,6.006006,166.5,166.43,50.65798744]
[1747528094374,6.00528465,166.52,166.43,65.67931772]
[1747528095471,6.00456346,166.54,166.43,65.67931772]
[1747528096068,21.01597213,166.54,166.43,65.67931772]
[1747528100873,25.20388825,166.54,166.43,65.67931772]
[1747528102079,31.20845171,166.54,166.43,65.67931772]
[1747528102977,21.01597213,166.54,166.43,65.67931772]
[1747528103475,6.00420294,166.55,166.45,18.64964886]
[1747528103649,6.00420294,166.55,166.47,18.64964886]
[1747528104057,21.01471029,166.55,166.47,18.64964886]
[1747528106377,21.01471029,166.55,166.47,24.65657117]
[1747528107456,21.01471029,166.55,166.47,18.64964886]
[1747528112785,6.00312162,166.58,166.49,18.64964886]
[1747528112973,6.00312162,166.58,166.51,18.64964886]
[1747528113152,6.00312162,166.58,166.52,19.0]
[1747528113963,25.19837102,166.61,166.52,25.00503194]
[1747528113964,6.00240096,166.6,166.52,25.00503194]
[1747528126216,6.00240096,166.6,166.53,24.65430097]
[1747528126893,6.00240096,166.6,166.54,1.6063]
[1747528127809,6.00204069,166.61,166.54,7.61068468]
[1747528130501,6.00204069,166.61,166.54,1.6063]
[1747528132315,6.00204069,166.61,166.51,15.01396971]
[1747528132316,31.199622,166.61,166.51,6.00551181]
[1747528132491,10.19247958,166.6,166.53,19.0]
[1747528133488,6.00276127,166.59,166.53,19.0]
[1747528134318,6.00276127,166.59,166.53,25.00479301]
[1747528135421,21.00714242,166.61,166.53,25.00479301]
[1747528135812,31.199622,166.61,166.53,19.0]
[1747528137225,31.199622,166.61,166.53,25.00482676]
[1747528137799,31.199622,166.61,166.53,19.0]
[1747528138330,31.199622,166.61,166.53,25.00480303]
[1747528140238,10.19247958,166.59,166.5,7.9921]
[1747528140538,10.19247958,166.59,166.51,37.62964886]
[1747528140825,10.19247958,166.59,166.51,18.64964886]
[1747528141420,10.19247958,166.56,166.5,7.9921]
[1747528141608,10.19247958,166.55,166.48,42.28560483]
[1747528142510,26.0,166.59,166.48,4.30560483]
[1747528142511,10.19247958,166.52,166.48,4.30560483]
[1747528142709,10.19247958,166.51,166.48,4.30560483]
[1747528144118,10.19247958,166.5,166.48,4.30560483]
[1747528144420,10.19247958,166.49,166.48,4.30560483]
[1747528144621,16.19884632,166.49,166.48,4.30560483]
[1747528145323,31.21476319,166.49,166.41,20.6412]
[1747528145504,10.19247958,166.47,166.41,20.6412]
[1747528145706,16.19884632,166.49,166.41,20.6412]
[1747528146295,6.00636674,166.49,166.42,18.64964886]
[1747528146702,6.006006,166.5,166.43,6.00853211]
[1747528150143,16.19848558,166.5,166.42,18.64964886]
[1747528150315,36.19247958,166.49,166.41,20.6612]
[1747528151029,36.19247958,166.49,166.41,1.6612]
[1747528151229,10.19247958,166.48,166.41,1.6612]
[1747528151437,6.00708836,166.47,166.41,1.6612]
[1747528151818,6.00708836,166.47,166.41,7.67042525]
[1747528153214,6.00672753,166.48,166.41,7.67042525]
[1747528153418,36.19247958,166.49,166.41,7.67042525]
[1747528154920,26.0,166.49,166.43,6.00853211]
[1747528155434,32.0065042,166.49,166.43,6.00853211]
[1747528155633,6.0065042,166.49,166.43,6.00853211]